lending/lending_fUSD_20240710
["ID","MTS","AMOUNT","RATE_DAILY","PERIOD"]
[331625579,1720590640839,-6234.20000001,0.00013,2]
[331625580,1720590640878,-1241.73529234,0.00013,2]
[331625581,1720590640907,-1393.21567865,0.00013,2]
[331625582,1720590640921,-2798.31543229,0.00013,2]
[331625587,1720590641805,-1654.17456876,0.00013,2]
[331625625,1720590642896,-1528.63508601,0.00013,2]
[331625626,1720590643714,-449.41355224,0.00013,2]
[331625627,1720590643735,-407665.2930863,0.00013,2]
[331625628,1720590643752,-822.66,0.00013,2]
[331625629,1720590643806,-2553.74269361,0.00013,2]
[331625630,1720590646723,-3092.20828448,0.00013,2]
[331625631,1720590646737,-2600.39073824,0.00013,2]
[331625633,1720590661506,363.33,0.00010672,2]
[331625634,1720590851290,899.14507577,0.00011199,2]
[331625635,1720590912527,566.64,0.00011935,2]
[331625636,1720590922885,168.42,0.00011915,2]
[331625637,1720590941840,250.0,0.00011915,2]
[331625638,1720590945110,194.5,0.00011915,2]
[331625639,1720590974194,424.8441,0.00011952,2]
[331625640,1720590990809,232.547553,0.00011973,2]
[331625641,1720591006112,150.0,0.00011803,2]
[331625642,1720591064791,727.91,0.00011778,2]
[331625643,1720591069308,200.0,0.00011778,2]
[331625644,1720591141852,155.19171793,0.00011199,2]
[331625645,1720591217494,362.22,9.817e-05,2]
[331625646,1720591221960,250.0,0.00011734,2]
[331625648,1720591301598,-154.4,0.00012027,2]
[331625649,1720591301622,-362.22,0.0001208,2]
[331625650,1720591301644,-825.41,0.00012094,2]
[331625651,1720591303985,284.0417146,0.00011199,2]
[331625652,1720591342702,13372.81,0.00011784,2]
[331625653,1720591460526,1.1182854,0.00011199,2]
[331625654,1720591460553,226.17307584,0.00011199,2]
[331625655,1720591474334,250.0,0.0001175,2]
[331625656,1720591492647,242.5499319,0.00011199,2]
[331625657,1720591517266,172.6,0.00011769,2]
[331625658,1720591533874,323.64618287,0.00027,120]
[331625659,1720591537776,154.4,0.00011871,2]
[331625660,1720591648701,150.0,0.00011688,2]
[331625673,1720591662194,840.0,0.00011714,2]
[331625685,1720591777181,325.99,9.78e-05,2]
[331625700,1720591832006,-325.99,0.00012044,2]
[331625701,1720591832016,-155.05946444,0.00012141,2]
[331625702,1720591832025,-500.0,0.00012241,2]
[331625703,1720591832034,-500.0,0.00012241,2]
[331625704,1720591832043,-500.0,0.00012241,2]
[331625705,1720591832054,-503.54703073,0.00012241,2]
[331625706,1720591832064,-200.0,0.000123,4]
[331625707,1720591832074,-1000.0,0.00012358,2]
[331625708,1720591832086,-300.0,0.00012358,2]
[331625709,1720591832096,-300.0,0.00012358,2]
[331625710,1720591832106,-10133.70502909,0.00012359,2]
[331625712,1720591834083,-5409.28786295,0.00012359,2]
[331625713,1720591834109,-106079.00710796,0.00012359,2]
[331625714,1720591834118,-500.0,0.000124,4]
[331625715,1720591834129,-201.0,0.0001248,2]
[331625716,1720591834138,-154.4,0.0001249,2]
[331625717,1720591834148,-21486.7154371,0.000125,2]
[331625718,1720591834160,-1305.45944161,0.000125,2]
[331625719,1720591834241,-10916.93811078,0.000125,2]
[331625720,1720591834254,-12182.78132822,0.000125,2]
[331625721,1720591834267,-4252.14058229,0.000125,2]
[331625722,1720591834276,-4030.7088,0.000125,2]
[331625723,1720591834285,-365.59291968,0.000125,2]
[331625724,1720591834295,-800.0,0.000125,4]
[331625725,1720591834306,-301.36,0.000125,2]
[331625726,1720591834317,-150.0,0.000125,2]
[331625727,1720591834326,-150.0,0.000125,2]
[331625728,1720591834338,-150.0,0.000125,2]
[331625729,1720591834347,-4798.3702,0.00012514,2]
[331625730,1720591834356,-12577.8517,0.0001257,2]
[331625731,1720591834365,-9968.8805,0.0001257,2]
[331625732,1720591834375,-2793.2759,0.0001257,2]
[331625733,1720591834385,-693.6053,0.0001257,2]
[331625734,1720591834397,-697.69222662,0.00012572,2]
[331625735,1720591834406,-557.91,0.00012572,2]
[331625736,1720591834418,-150.99,0.00012572,2]
[331625737,1720591834428,-499.99,0.00012572,2]
[331625738,1720591834437,-45518.51206484,0.000126,2]
[331625739,1720591834449,-836.47238192,0.000126,2]
[331625740,1720591834460,-10078.06183288,0.000126,2]
[331625741,1720591834471,-1916.80238943,0.000126,2]
[331625742,1720591834483,-1506.26770272,0.000126,2]
[331625743,1720591834494,-706.07482364,0.000126,2]
[331625744,1720591834507,-2965.0683,0.000126,2]
[331625745,1720591834519,-4121.07153573,0.000126,2]
[331625746,1720591834531,-23332.16127814,0.000126,2]
[331625747,1720591834547,-1181.42468244,0.000126,2]
[331625748,1720591834560,-2366.82428039,0.000126,2]
[331625749,1720591834570,-296.5600783,0.000126,2]
[331625750,1720591834581,-4384.90963218,0.000126,2]
[331625751,1720591834595,-789.78901739,0.000126,2]
[331625752,1720591834607,-419.36,0.000126,2]
[331625753,1720591834619,-365.59291965,0.000126,2]
[331625754,1720591834628,-798.55518296,0.000126,4]
[331625755,1720591834643,-301.44481704,0.000126,4]
[331625756,1720591834653,-150.0,0.000126,2]
[331625757,1720591834663,-150.0,0.000126,2]
[331625758,1720591834672,-98.25653498,0.0001263,2]
[331625759,1720591834685,-102.74346502,0.0001263,2]
[331625760,1720591834694,-458.123,0.0001267,2]
[331625761,1720591834703,-860.32163211,0.0001267,2]
[331625762,1720591834714,-558.15546194,0.0001267,2]
[331625763,1720591834727,-1266.60175907,0.0001267,2]
[331625764,1720591834739,-498.56133196,0.0001267,2]
[331625765,1720591834750,-1103.55713475,0.0001267,2]
[331625766,1720591834762,-518.40021227,0.0001267,2]
[331625767,1720591834774,-1133.16129937,0.0001267,2]
[331625778,1720591838124,-131457.46246853,0.0001267,2]
[331625779,1720591838134,-777.10161845,0.00012678,2]
[331625780,1720591838144,-150.0,0.000127,2]
[331625781,1720591838154,-164.99,0.000127,2]
[331625782,1720591838164,-365.59291965,0.000127,2]
[331625783,1720591838173,-1300.0,0.000127,4]
[331625784,1720591838183,-150.0,0.00012739,2]
[331625785,1720591838193,-201.0,0.0001277,2]
[331625786,1720591838202,-150.0,0.00012785,2]
[331625787,1720591838212,-275.59319157,0.00012796,2]
[331625788,1720591838221,-365.59291965,0.000128,2]
[331625789,1720591838231,-150.0,0.000128,2]
[331625790,1720591838240,-200.0,0.000128,4]
[331625791,1720591838250,-150.0,0.00012843,2]
[331625792,1720591838260,-150.0,0.00012849,2]
[331625793,1720591838270,-150.0,0.00012858,2]
[331625794,1720591838280,-574.04883,0.0001287,2]
[331625795,1720591838289,-150.0,0.0001288,2]
[331625796,1720591838299,-150.0,0.00012888,2]
[331625797,1720591838310,-150.0,0.0001289,2]
[331625798,1720591838319,-11253.65473189,0.0001289,2]
[331625799,1720591838329,-150.0,0.00012891,2]
[331625800,1720591838340,-323.86948515,0.00012896,2]
[331625801,1720591838349,-697.69222663,0.00012899,2]
[331625802,1720591838359,-1385.4558,0.000129,2]
[331625803,1720591838369,-167.36405958,0.000129,2]
[331625804,1720591838379,-181.4307852,0.000129,2]
[331625805,1720591838388,-365.59291965,0.000129,2]
[331625806,1720591838397,-200.0,0.000129,4]
[331625807,1720591838407,-178.72658146,0.000129,2]
[331625808,1720591838415,-201.0,0.0001292,2]
[331625809,1720591838424,-154.29818798,0.00012986,2]
[331625810,1720591838434,-564.90431941,0.00012989,2]
[331625811,1720591838443,-564.90431941,0.0001299,2]
[331625812,1720591838452,-564.90431941,0.0001299,2]
[331625813,1720591838462,-12902.323097,0.00012992,2]
[331625814,1720591838472,-1874.6793529,0.00012996,2]
[331625815,1720591838481,-1794.3272483,0.00012996,2]
[331625816,1720591838491,-20703.10392485,0.00012997,2]
[331625817,1720591838500,-289.37710633,0.00012999,2]
[331625818,1720591838510,-30725.07105245,0.00012999,2]
[331625819,1720591838534,-53576.86367619,0.00012999,2]
[331625820,1720591838543,-5929.00898874,0.00012999,2]
[331625821,1720591838553,-621.0,0.00013,2]
[331625822,1720591838564,-2010622.46324818,0.00013,2]
[331625823,1720591838576,-868011.91328868,0.00013,2]
[331625824,1720591838600,-6688.73988323,0.00013,2]
[331625825,1720591838612,-2995.97861347,0.00013,2]
[331625827,1720591838664,-5629.96734332,0.00013,2]
[331625844,1720591840119,-278.26039818,0.00013,2]
[331625845,1720591840200,-5910.8,0.00013,2]
[331625846,1720591840280,-934.80926867,0.00013,2]
[331625847,1720591840292,-50312.0985667,0.00013,2]
[331625848,1720591840359,-5580682.24554608,0.00013,2]
[331625849,1720591840369,-15128.14,0.00013,2]
[331625850,1720591840380,-252.75,0.00013,2]
[331625851,1720591840390,-748.23,0.00013,2]
[331625852,1720591840399,-748.09,0.00013,2]
[331625853,1720591840408,-748.09,0.00013,2]
[331625854,1720591840418,-748.09,0.00013,2]
[331625855,1720591840427,-748.09,0.00013,2]
[331625856,1720591840437,-748.09,0.00013,2]
[331625857,1720591840446,-748.09,0.00013,2]
[331625858,1720591840455,-748.09,0.00013,2]
[331625859,1720591840464,-748.09,0.00013,2]
[331625860,1720591840474,-748.09,0.00013,2]
[331625861,1720591840482,-381.5,0.00013,2]
[331625862,1720591840491,-748.09,0.00013,2]
[331625863,1720591840500,-748.09,0.00013,2]
[331625864,1720591840509,-748.09,0.00013,2]
[331625865,1720591840519,-748.09,0.00013,2]
[331625867,1720591840527,-2897.0402174,0.00013001,2]
[331625869,1720591840536,-59108.7752378,0.00013001,2]
[331625871,1720591840546,-1811.5027696,0.00013001,2]
[331625873,1720591840555,-6320.4771076,0.0001301,2]
[331625875,1720591840564,-21092.6290628,0.0001301,2]
[331625877,1720591840574,-10000.0,0.00013019,2]
[331625879,1720591840583,-323.86948513,0.00013039,2]
[331625881,1720591840594,-201.0,0.0001307,2]
[331625883,1720591840603,-150.0,0.00013075,2]
[331625885,1720591840612,-150.0,0.00013075,2]
[331625887,1720591840621,-150.0,0.00013075,2]
[331625889,1720591840630,-150.0,0.00013075,2]
[331625891,1720591840640,-150.0,0.00013075,2]
[331625893,1720591840649,-150.0,0.00013075,2]
[331625895,1720591840658,-167.36405958,0.00013094,2]
[331625897,1720591840667,-150.0,0.00013104,2]
[331625899,1720591840677,-5000.0,0.00013128,2]
[331625901,1720591840686,-389.44402368,0.00013128,2]
[331625903,1720591840695,-155.42391609,0.00013128,2]
[331625905,1720591840705,-840.0,0.00013178,2]
[331625907,1720591840714,-323.86948513,0.00013183,2]
[331625909,1720591840724,-201.0,0.0001321,2]
[331625911,1720591840733,-178.72658145,0.00013249,2]
[331625913,1720591840742,-200.0,0.0001325,2]
[331625915,1720591840752,-167.36405958,0.00013289,2]
[331625917,1720591840761,-1010.0,0.000133,2]
[331625919,1720591840770,-323.86948513,0.00013326,2]
[331625921,1720591840779,-201.0,0.0001336,2]
[331625923,1720591840789,-500.0,0.00013378,2]
[331625925,1720591840798,-574.04884,0.0001339,2]
[331625927,1720591840807,-194.6,0.00013447,2]
[331625928,1720591840817,-4000.0,0.00013463,7]
[331625929,1720591840827,-323.86948513,0.0001347,2]
[331625930,1720591840837,-165.539992,0.00013477,2]
[331625931,1720591840848,-618.218943,0.00013477,2]
[331625932,1720591840858,-229.044624,0.00013477,2]
[331625933,1720591840868,-189.291138,0.00013477,2]
[331625934,1720591840877,-682.794927,0.00013477,2]
[331625935,1720591840886,-1661.212116,0.00013477,2]
[331625936,1720591840896,-1754.873188,0.00013477,2]
[331625937,1720591840905,-1217.863689,0.00013477,2]
[331625938,1720591840914,-1606.120045,0.00013477,2]
[331625939,1720591840923,-164.99,0.00013479,2]
[331625940,1720591840933,-282.06013079,0.00013483,2]
[331625941,1720591840942,-150.0,0.00013483,2]
[331625942,1720591840953,-150.0,0.00013483,2]
[331625943,1720591840962,-150.0,0.00013483,2]
[331625944,1720591840972,-150.0,0.00013483,2]
[331625945,1720591840981,-150.0,0.00013483,2]
[331625946,1720591840990,-150.0,0.00013483,2]
[331625947,1720591840999,-150.0,0.00013483,2]
[331625948,1720591841009,-150.0,0.00013483,2]
[331625949,1720591841018,-150.0,0.00013483,2]
[331625950,1720591841027,-167.36405958,0.00013483,2]
[331625951,1720591841036,-282.06013079,0.00013498,2]
[331625952,1720591841046,-356.0,0.000135,2]
[331625953,1720591841055,-1000.0,0.000135,2]
[331625954,1720591841064,-225.0,0.000135,2]
[331625955,1720591841074,-150.0,0.00013501,2]
[331625956,1720591841084,-150.0,0.00013502,2]
[331625957,1720591841095,-201.0,0.0001351,2]
[331625958,1720591841104,-282.06013079,0.00013513,2]
[331625959,1720591841114,-150.0,0.0001352,2]
[331625960,1720591841124,-150.0,0.00013522,2]
[331625961,1720591841134,-282.06013079,0.00013528,2]
[331625962,1720591841143,-1466.212,0.00013529,2]
[331625963,1720591841157,-150.0,0.00013538,2]
[331625964,1720591841167,-150.0,0.00013541,2]
[331625965,1720591841176,-282.06013079,0.00013543,2]
[331625966,1720591841186,-150.0,0.00013557,2]
[331625967,1720591841195,-282.06013079,0.00013559,2]
[331625968,1720591841205,-150.0,0.00013561,2]
[331625969,1720591841214,-150.0,0.00013562,2]
[331625970,1720591841224,-282.06013079,0.00013574,2]
[331625971,1720591841233,-6163.06150255,0.00013574,2]
[331625972,1720591841243,-150.0,0.00013575,2]
[331625973,1720591841252,-150.0,0.0001358,2]
[331625974,1720591841261,-282.06013079,0.00013589,2]
[331625975,1720591841270,-150.0,0.00013594,2]
[331625976,1720591841283,-181.4307852,0.00013598,2]
[331625977,1720591841292,-178.72658145,0.00013598,2]
[331625978,1720591841301,-150.0,0.000136,2]
[331625979,1720591841310,-282.06013079,0.00013604,2]
[331625980,1720591841319,-150.0,0.00013612,2]
[331625981,1720591841328,-323.86948513,0.00013613,2]
[331625982,1720591841337,-282.06013079,0.00013619,2]
[331625983,1720591841348,-150.0,0.00013619,2]
[331625984,1720591841357,-150.0,0.00013631,2]
[331625985,1720591841366,-282.06013079,0.00013634,2]
[331625986,1720591841375,-150.0,0.00013639,2]
[331625987,1720591841385,-150.0,0.00013641,2]
[331625988,1720591841394,-618.218943,0.00013646,2]
[331625989,1720591841403,-682.794927,0.00013646,2]
[331625990,1720591841412,-1661.212116,0.00013646,2]
[331625991,1720591841421,-1754.873188,0.00013646,2]
[331625992,1720591841430,-1217.863689,0.00013646,2]
[331625993,1720591841439,-1606.120045,0.00013646,2]
[331625994,1720591841448,-282.06013079,0.00013649,2]
[331625995,1720591841458,-150.0,0.00013649,2]
[331625996,1720591841467,-150.0,0.00013658,2]
[331625997,1720591841476,-201.0,0.0001366,2]
[331625998,1720591841485,-282.06013079,0.00013664,2]
[331625999,1720591841494,-150.0,0.00013668,2]
[331626000,1720591841504,-150.0,0.00013677,2]
[331626001,1720591841513,-167.36405958,0.00013678,2]
[331626002,1720591841522,-282.06013079,0.0001368,2]
[331626003,1720591841532,-150.0,0.00013686,2]
[331626004,1720591841541,-282.06013079,0.00013695,2]
[331626005,1720591841552,-150.0,0.00013697,2]
[331626006,1720591841561,-500.0,0.00013698,2]
[331626007,1720591841571,-191.35747675,0.00013698,2]
[331626008,1720591841579,-333.95023372,0.00013698,2]
[331626009,1720591841588,-500.0,0.00013698,2]
[331626010,1720591841600,-500.0,0.00013698,2]
[331626011,1720591841609,-500.0,0.00013698,2]
[331626012,1720591841619,-290.23654381,0.00013698,2]
[331626013,1720591841629,-500.0,0.00013698,2]
[331626014,1720591841639,-500.0,0.00013698,2]
[331626015,1720591841648,-577.54146938,0.00013698,2]
[331626016,1720591841659,-500.0,0.00013698,2]
[331626017,1720591841668,-500.0,0.00013698,2]
[331626018,1720591841677,-500.0,0.00013698,2]
[331626019,1720591841686,-500.0,0.00013698,2]
[331626020,1720591841696,-500.0,0.00013698,2]
[331626021,1720591841707,-500.0,0.00013698,2]
[331626022,1720591841716,-260.81687492,0.00013698,2]
[331626023,1720591841725,-610.40868593,0.00013698,2]
[331626024,1720591841734,-571.48859784,0.00013698,2]
[331626025,1720591841743,-500.0,0.00013698,2]
[331626026,1720591841752,-500.0,0.00013698,2]
[331626027,1720591841761,-292.93614177,0.00013698,2]
[331626028,1720591841771,-500.0,0.00013698,2]
[331626029,1720591841780,-500.0,0.00013698,2]
[331626030,1720591841789,-500.0,0.00013698,2]
[331626031,1720591841799,-500.0,0.00013698,2]
[331626032,1720591841808,-348.59073478,0.00013698,2]
[331626033,1720591841820,-500.0,0.00013698,2]
[331626034,1720591841829,-500.0,0.00013698,2]
[331626035,1720591841838,-528.73573547,0.00013698,2]
[331626036,1720591841852,-500.0,0.00013698,2]
[331626037,1720591841862,-500.0,0.00013698,2]
[331626038,1720591841872,-500.0,0.00013698,2]
[331626039,1720591841882,-500.0,0.00013698,2]
[331626040,1720591841892,-500.0,0.00013698,2]
[331626041,1720591841901,-500.0,0.00013698,2]
[331626042,1720591841911,-500.0,0.00013698,2]
[331626043,1720591841920,-500.0,0.00013698,2]
[331626044,1720591841930,-500.0,0.00013698,2]
[331626045,1720591841939,-500.0,0.00013698,2]
[331626046,1720591841949,-500.0,0.00013698,2]
[331626047,1720591841958,-500.0,0.00013698,2]
[331626048,1720591841968,-500.0,0.00013698,2]
[331626049,1720591841978,-453.6525088,0.00013698,2]
[331626050,1720591841987,-500.0,0.00013698,2]
[331626051,1720591842274,-500.0,0.00013698,2]
[331626052,1720591842284,-500.0,0.00013698,2]
[331626053,1720591842294,-500.0,0.00013698,2]
[331626054,1720591842303,-151.0,0.00013698,2]
[331626055,1720591842313,-151.0,0.00013698,2]
[331626056,1720591842323,-531.46170213,0.00013698,2]
[331626057,1720591842333,-500.0,0.00013698,2]
[331626058,1720591842342,-350.0,0.00013698,2]
[331626059,1720591842355,-500.0,0.00013698,2]
[331626060,1720591842364,-500.0,0.00013698,2]
[331626061,1720591842373,-589.71502884,0.00013698,2]
[331626062,1720591842382,-500.0,0.00013698,2]
[331626063,1720591842393,-200.0,0.00013698,2]
[331626064,1720591842402,-500.0,0.00013698,2]
[331626065,1720591842411,-500.0,0.00013698,2]
[331626066,1720591842420,-500.0,0.00013698,2]
[331626067,1720591842429,-500.0,0.00013698,2]
[331626068,1720591842438,-500.0,0.00013698,2]
[331626069,1720591842447,-500.0,0.00013698,2]
[331626070,1720591842456,-500.0,0.00013698,2]
[331626071,1720591842465,-500.0,0.00013698,2]
[331626072,1720591842474,-500.0,0.00013698,2]
[331626073,1720591842483,-500.0,0.00013698,2]
[331626074,1720591842492,-500.0,0.00013698,2]
[331626075,1720591842501,-221.53256183,0.00013698,2]
[331626076,1720591842510,-500.0,0.00013698,2]
[331626077,1720591842519,-500.0,0.00013698,2]
[331626078,1720591842528,-500.0,0.00013698,2]
[331626079,1720591842537,-500.0,0.00013698,2]
[331626080,1720591842546,-302.05424433,0.00013698,2]
[331626081,1720591842555,-500.0,0.00013698,2]
[331626082,1720591842564,-500.0,0.00013698,2]
[331626083,1720591842574,-500.0,0.00013698,2]
[331626084,1720591842583,-500.0,0.00013698,2]
[331626085,1720591842595,-500.0,0.00013698,2]
[331626086,1720591842604,-500.0,0.00013698,2]
[331626087,1720591842614,-500.0,0.00013698,2]
[331626088,1720591842623,-500.0,0.00013698,2]
[331626089,1720591842632,-151.0,0.00013698,2]
[331626090,1720591842642,-151.0,0.00013698,2]
[331626091,1720591842651,-201.452247,0.00013698,2]
[331626092,1720591842660,-500.0,0.00013698,2]
[331626093,1720591842669,-500.0,0.00013698,2]
[331626094,1720591842678,-612.09,0.00013698,2]
[331626095,1720591842688,-500.0,0.00013698,2]
[331626096,1720591842698,-500.0,0.00013698,2]
[331626097,1720591842707,-500.0,0.00013698,2]
[331626098,1720591842717,-500.0,0.00013698,2]
[331626099,1720591842727,-500.0,0.00013698,2]
[331626101,1720591842736,-710.39,0.00013698,2]
[331626102,1720591842745,-500.0,0.00013698,2]
[331626103,1720591842755,-500.0,0.00013698,2]
[331626104,1720591842765,-500.0,0.00013698,2]
[331626105,1720591842774,-728.23,0.00013698,2]
[331626106,1720591842784,-500.0,0.00013698,2]
[331626107,1720591842793,-500.0,0.00013698,2]
[331626108,1720591842802,-831.53,0.00013698,2]
[331626110,1720591842814,-982.07,0.00013698,2]
[331626111,1720591842824,-500.0,0.00013698,2]
[331626112,1720591842834,-500.0,0.00013698,2]
[331626113,1720591842845,-583.48,0.00013698,2]
[331626114,1720591842855,-500.0,0.00013698,2]
[331626115,1720591842864,-500.0,0.00013698,2]
[331626116,1720591842874,-500.0,0.00013698,2]
[331626117,1720591842883,-500.0,0.00013698,2]
[331626118,1720591842893,-500.0,0.00013698,2]
[331626119,1720591842902,-500.0,0.00013698,2]
[331626121,1720591842911,-500.0,0.00013698,2]
[331626123,1720591842920,-168.71197737,0.00013698,2]
[331626125,1720591842929,-500.0,0.00013698,2]
[331626127,1720591842938,-1791.5,0.00013698,2]
[331626128,1720591842947,-950.02,0.00013698,2]
[331626130,1720591842956,-500.0,0.00013698,2]
[331626132,1720591842966,-151.0,0.00013698,2]
[331626134,1720591842975,-500.0,0.00013698,2]
[331626136,1720591842984,-151.0,0.00013698,2]
[331626138,1720591842995,-160.942943,0.00013698,2]
[331626140,1720591843004,-500.0,0.00013698,2]
[331626142,1720591843013,-151.0,0.00013698,2]
[331626143,1720591843023,-1733.49,0.00013698,2]
[331626145,1720591843032,-151.65887,0.00013698,2]
[331626148,1720591843042,-670.94,0.00013698,2]
[331626150,1720591843052,-500.0,0.00013698,2]
[331626153,1720591843061,-500.0,0.00013698,2]
[331626155,1720591843071,-500.0,0.00013698,2]
[331626156,1720591843082,-500.0,0.00013698,2]
[331626158,1720591843092,-1221.32,0.00013698,2]
[331626160,1720591843102,-353.73261477,0.00013698,2]
[331626162,1720591843112,-500.0,0.00013698,2]
[331626164,1720591843121,-500.0,0.00013698,2]
[331626166,1720591843130,-500.0,0.00013698,2]
[331626168,1720591843139,-500.0,0.00013698,2]
[331626169,1720591843148,-1287.76,0.00013698,2]
[331626170,1720591843157,-549.92,0.00013698,2]
[331626171,1720591843167,-996.17,0.00013698,2]
[331626172,1720591843176,-855.19,0.00013698,2]
[331626173,1720591843186,-500.0,0.00013698,2]
[331626174,1720591843195,-500.0,0.00013698,2]
[331626175,1720591843204,-500.0,0.00013698,2]
[331626176,1720591843214,-635.75,0.00013698,2]
[331626177,1720591843223,-500.0,0.00013698,2]
[331626178,1720591843236,-500.0,0.00013698,2]
[331626179,1720591843245,-500.0,0.00013698,2]
[331626180,1720591843255,-1291.24,0.00013698,2]
[331626181,1720591843264,-855.05,0.00013698,2]
[331626182,1720591843273,-1362.92,0.00013698,2]
[331626183,1720591843283,-500.0,0.00013698,2]
[331626184,1720591843293,-636.4515973,0.00013698,2]
[331626185,1720591843302,-500.0,0.00013698,2]
[331626186,1720591843311,-848.56,0.00013698,2]
[331626187,1720591843320,-500.0,0.00013698,2]
[331626188,1720591843329,-500.0,0.00013698,2]
[331626189,1720591843339,-151.0,0.00013698,2]
[331626190,1720591843350,-1119.73,0.00013698,2]
[331626191,1720591843359,-500.0,0.00013698,2]
[331626192,1720591843369,-653.84,0.00013698,2]
[331626193,1720591843379,-151.0,0.00013698,2]
[331626194,1720591843388,-151.0,0.00013698,2]
[331626195,1720591843398,-500.0,0.00013698,2]
[331626196,1720591843407,-500.0,0.00013698,2]
[331626197,1720591843418,-153.195149,0.00013698,2]
[331626198,1720591843428,-201.258385,0.00013698,2]
[331626199,1720591843437,-500.0,0.00013698,2]
[331626200,1720591843447,-724.23,0.00013698,2]
[331626201,1720591843458,-500.0,0.00013698,2]
[331626202,1720591843467,-500.0,0.00013698,2]
[331626203,1720591843476,-500.0,0.00013698,2]
[331626204,1720591843486,-500.0,0.00013698,2]
[331626205,1720591843495,-500.0,0.00013698,2]
[331626206,1720591843504,-500.0,0.00013698,2]
[331626207,1720591843513,-500.0,0.00013698,2]
[331626208,1720591843522,-500.0,0.00013698,2]
[331626209,1720591843541,-500.0,0.00013698,2]
[331626210,1720591843553,-1839.3,0.00013698,2]
[331626211,1720591843562,-1506.23,0.00013698,2]
[331626212,1720591843572,-1577.41,0.00013698,2]
[331626213,1720591843582,-843.41,0.00013698,2]
[331626214,1720591843592,-664.9,0.00013698,2]
[331626215,1720591843603,-500.0,0.00013698,2]
[331626216,1720591843612,-1274.65,0.00013698,2]
[331626217,1720591843622,-622.1,0.00013698,2]
[331626218,1720591843631,-500.0,0.00013698,2]
[331626219,1720591843641,-151.0,0.00013698,2]
[331626220,1720591843651,-1213.12,0.00013698,2]
[331626221,1720591843660,-151.0,0.00013698,2]
[331626222,1720591843670,-869.47,0.00013698,2]
[331626223,1720591843680,-151.0,0.00013698,2]
[331626224,1720591843690,-500.0,0.00013698,2]
[331626225,1720591843700,-500.0,0.00013698,2]
[331626226,1720591843710,-848.05,0.00013698,2]
[331626227,1720591843720,-645.91,0.00013698,2]
[331626228,1720591843730,-500.0,0.00013698,2]
[331626229,1720591843740,-505.89,0.00013698,2]
[331626230,1720591843750,-1917.75,0.00013698,2]
[331626232,1720591843759,-500.0,0.00013698,2]
[331626233,1720591843769,-500.0,0.00013698,2]
[331626235,1720591843778,-500.0,0.00013698,2]
[331626236,1720591843788,-748.09,0.00013698,2]
[331626237,1720591843797,-500.0,0.00013698,2]
[331626238,1720591843807,-627.76737033,0.00013698,2]
[331626239,1720591843818,-1379.4,0.00013698,2]
[331626240,1720591843828,-500.0,0.00013698,2]
[331626241,1720591843838,-873.41,0.00013698,2]
[331626242,1720591843849,-500.0,0.00013698,2]
[331626243,1720591843859,-563.16,0.00013698,2]
[331626244,1720591843869,-500.0,0.00013698,2]
[331626245,1720591843879,-500.0,0.00013698,2]